Cogmind - Beta 14 @@@ ROGUE MODE // 2024.11.05 @ 20:12:24 Player: weedlord420 Result: Self-destructed Performance ------------- Evolutions (4) 2000 Regions Visited (8) 1600 Robots Destroyed (64) 320 Value Destroyed (2862) 2862 Prototype IDs (26) 520 Alien Tech Used (0) 0 Bonus (2311) 2311 TOTAL SCORE: 9613 Bonus ------- High Alert Combat Kills 258 Follower Combat Kills 1053 Entered Garrisons 200 Used RIF Installer 500 Aligned with FarCom 300 Cogmind --------- Core Integrity 739/850 Matter 300/300 Energy 290/290 System Corruption 0% Temperature Cool (0) Movement Rolling (115) Ox1 Location -6/Factory Parts ------- > --- POWER (1) -------- Reinforced Deuterium Engine > --- PROPULSION (2) --- Armored Huge Wheel > --- UTILITY (10) ----- Large Storage Unit Hardened Medium Armor Plating Hacking Suite Hacking Suite System Shield System Shield Relay Coupler [Grunt] (3) > --- WEAPON (2) ------- Improved Remote Datajack Lance > --- INVENTORY (15) --- Medium Treads Armored Medium Treads Advanced Cooling System Relay Coupler [NC] (38) Relay Coupler [Grunt] (27) Relay Coupler [Sentry] (29) Relay Coupler [Sentry] (26) Relay Coupler [Behemoth] (8) Guided Plasma Cannon Minigun Long-range Missile Launcher Long-range Missile Launcher Field Lobotomy Kit (3) Improved Plasma Cutter Longsword +1 Peak State ------------ > --- POWER ------------ Reinforced Ion Engine > --- PROPULSION ------- Advanced Treads Armored Medium Treads > --- UTILITY ---------- Large Storage Unit Improved Medium Armor Plating Improved Focal Shield Hacking Suite System Shield System Shield System Shield Relay Coupler [Grunt] > --- WEAPON ----------- Guided Plasma Cannon Lance > --- INVENTORY -------- Light Treads Advanced Cooling System Hardened Medium Armor Plating Relay Coupler [NC] Relay Coupler [Grunt] Relay Coupler [Sentry] Relay Coupler [Sentry] Relay Coupler [Behemoth] Minigun Long-range Missile Launcher Long-range Missile Launcher Improved Remote Datajack Field Lobotomy Kit Improved Plasma Cutter Longsword +1 [Rating: 58] Favorites ----------- Power Reinforced Ion Engine Engine Reinforced Ion Engine Power Core Light Nuclear Core Propulsion Light Treads Treads Light Treads Wheel Wheel Utility System Shield Device Improved Heat Sink Storage Large Storage Unit Hackware System Shield Protection Hardened Medium Armor Plating Weapon Light Assault Rifle Energy Gun EM Pulse Gun Energy Cannon Guided Plasma Cannon Ballistic Gun Light Assault Rifle Ballistic Cannon Flak Cannon Launcher Long-range Missile Launcher Special Weapon Improved Remote Datajack Slashing Weapon Katana Piercing Weapon Lance Build | -11 -10 -10 -10 -9 -8 -8 -7 -6 ------- Run | Yrd Mat Min Exi Min Mat Gar Fac Fac Slots Evolved 8 | . . . . . 4 . 2 2 Power . | . . . . . . . . . Propulsion . | . . . . . . . . . Utility 8 | . . . . . 4 . 2 2 Weapon . | . . . . . . . . . Parts Attached 92 | 8 16 2 2 3 22 25 13 1 Power 8 | 2 . . . . 4 1 1 . Engine 6 | 2 . . . . 2 1 1 . Core 2 | . . . . . 2 . . . Reactor . | . . . . . . . . . Propulsion 20 | 3 5 . 2 . 5 2 3 . Treads 11 | 2 3 . . . 2 2 2 . Leg . | . . . . . . . . . Wheel 9 | 1 2 . 2 . 3 . 1 . Hover . | . . . . . . . . . Flight . | . . . . . . . . . Utility 21 | 1 2 . . . 8 6 4 . Device 7 | . 1 . . . 2 3 1 . Storage 3 | 1 1 . . . 1 . . . Processor . | . . . . . . . . . Hackware 7 | . . . . . 3 3 1 . Protection 4 | . . . . . 2 . 2 . Artifact . | . . . . . . . . . Weapon 43 | 2 9 2 . 3 5 16 5 1 Energy Gun 8 | 1 4 1 . 2 . . . . Energy Cannon 1 | . . . . . . . 1 . Ballistic Gun 16 | 1 5 1 . 1 2 4 2 . Ballistic Cannon 1 | . . . . . 1 . . . Launcher 6 | . . . . . . 5 1 . Special Weapon 5 | . . . . . . 3 1 1 Impact Weapon . | . . . . . . . . . Slashing Weapon 2 | . . . . . 2 . . . Piercing Weapon 4 | . . . . . . 4 . . Special Melee Weapon . | . . . . . . . . . Unidentified Prototypes . | . . . . . . . . . Parts Lost 7 | . 1 . . 1 1 3 . 1 Power 1 | . . . . . . 1 . . Propulsion 1 | . . . . . 1 . . . Utility 3 | . . . . . . 2 . 1 Weapon 2 | . 1 . . 1 . . . . Highest Loss Streak 2 | . 1 . . 1 1 2 . 1 To Critical Strikes . | . . . . . . . . . Average Slot Usage (%) 96 | . 92 100 100 99 92 99 91 79 Engine 10 | . 14 14 14 14 7 9 7 6 Treads 15 | . 26 28 17 . 2 16 13 . Wheel 5 | . 1 . 10 28 15 1 . 6 Device 8 | . 7 14 14 14 14 6 2 . Storage 10 | . 14 14 14 14 9 9 7 6 Hackware 19 | . . . . . 15 35 38 33 Protection 3 | . . . . . 9 2 4 12 Energy Gun 1 | . 5 . . 4 . . . . Ballistic Gun 12 | . 22 27 28 23 4 6 1 3 Special Weapon 1 | . . . . . . 2 4 2 Slashing Weapon 1 | . . . . . 8 . . . Piercing Weapon 3 | . . . . . . 7 7 6 Peak Build Rating 58 | 6 10 10 13 13 32 46 58 54 Average Rating 28 | 3 8 10 11 12 27 42 49 52 On Entrance 19 | . 6 10 10 13 13 31 44 52 Naked Turns . | . . . . . . . . . Heaviest Build 57 | 13 29 28 28 30 51 53 56 57 Greatest Support 55 | 40 40 40 40 20 40 47 55 28 Greatest Overweight (x) 4 | 1 1 . 1 1 4 2 1 2 Average Overweight (x) . | . . . . 1 1 . . 1 Largest Inventory Capacity 15 | 8 15 15 15 15 15 15 15 15 Average Capacity 14 | 7 12 15 15 15 15 15 15 15 Most Carried 15 | 5 12 13 15 15 15 15 15 15 Average Carried 13 | 3 8 12 13 14 14 13 14 15 Final Capacity 15 | 8 15 15 15 15 15 15 15 15 Final Carried 15 | 4 12 13 15 14 15 15 15 15 Class Distribution -------------------- 55% | Hacker-Mutant 42% | Mutant Dominant Class ---------------- Mutant | -10/Materials Mutant | -10/Mines Mutant | -10/Exiles Mutant | -9/Mines Hacker-Mutant | -8/Materials Hacker-Mutant | -8/Garrison Hacker-Mutant | -7/Factory Hacker-Mutant | -6/Factory Resources | -11 -10 -10 -10 -9 -8 -8 -7 -6 ----------- Run | Yrd Mat Min Exi Min Mat Gar Fac Fac Matter Collected 1551 | 280 262 2 . 80 251 434 190 52 Remotely . | . . . . . . . . . Salvage Created 2101 | 91 694 42 . 67 544 232 268 163 Parts 142 | 3 53 4 . 6 28 18 23 7 Haulers Intercepted 2 | . 2 . . . . . . . Recyclers Shooed 2 | . . 1 . . . . 1 . Parts Field Recycled . | . . . . . . . . . Retrieved Matter . | . . . . . . . . . Parts Self-Destructed . | . . . . . . . . . Prevented . | . . . . . . . . . Kills | -11 -10 -10 -10 -9 -8 -8 -7 -6 ------- Run | Yrd Mat Min Exi Min Mat Gar Fac Fac Combat Hostiles Destroyed 43 | . 11 2 . 4 9 9 5 3 Melee 16 | . . . . . 9 4 . 3 Guns 13 | . 9 1 . 2 . 1 . . Cannons 1 | . . . . . . . 1 . AOE 13 | . 2 1 . 2 . 4 4 . Classes Destroyed 12 | 1 7 . . . 3 1 . . Worker 7 | . 1 1 . . 2 . 3 . Builder 3 | . 1 . . . 1 . 1 . Hauler 2 | . 2 . . . . . . . Recycler 4 | 1 2 . . . . . 1 . Operator 2 | . 2 . . . . . . . Watcher 3 | . 1 . . . 1 . 1 . Swarmer 17 | . 3 2 . 4 . 4 4 . Grunt 18 | . 8 . . . 5 2 . 3 Brawler 1 | . . . . . 1 . . . Sentry 2 | . . . . . 2 . . . Hunter 2 | . . . . . 1 . 1 . Programmer 3 | . . . . . . 3 . . Best Kill Streak 5 | 1 4 3 . 3 2 3 5 2 Combat Bots Only 4 | . 3 2 . 3 2 3 4 2 Max Kills in Single Turn 5 | 1 2 1 . 2 1 2 5 1 Gunslinging . | . . . . . . . . . Exploded 4 | . 2 1 . 2 . 2 4 . Melee 1 | . . . . . 1 1 . 1 Uniques/NPCs Destroyed . | . . . . . . . . . Combat | -11 -10 -10 -10 -9 -8 -8 -7 -6 -------- Run | Yrd Mat Min Exi Min Mat Gar Fac Fac Hostile Shots Fired 231 | . 49 9 . 15 34 76 8 40 Missed 53 | . 11 3 . 4 7 19 2 7 Damage Taken 2518 | . 411 52 . 95 377 802 140 641 Core 373 | . 66 . . 24 34 138 . 111 Absorbed by Shields 51 | . . . . . 51 . . . Ignored by Resistances 85 | . . . . . . 70 15 . Regen/Repaired (Parts) 42 | . 42 . . . . . . . Core Remaining (%) 83 | 100 . . . 64 . 68 100 . Volleys Fired 134 | 2 72 9 . 7 8 19 11 6 Largest 2 | 2 2 2 . 2 2 2 1 1 Hottest 120 | 60 80 60 . 80 44 86 120 7 Shots Fired 229 | 4 144 18 . 13 11 22 11 6 Gun 196 | 4 144 18 . 13 6 7 4 . Cannon 8 | . . . . . 5 . 3 . Launcher 12 | . . . . . . 10 2 . Special 13 | . . . . . . 5 2 6 Kinetic 145 | 2 105 12 . 4 11 7 4 . Thermal 3 | . . . . . . . 3 . Explosive 12 | . . . . . . 10 2 . Electromagnetic 56 | 2 39 6 . 9 . . . . Robot Hit Streak 12 | 2 12 7 . 3 5 4 5 1 Robot Miss Streak 11 | 1 11 3 . 2 5 3 1 3 Penetration Max . | . . . . . . . . . Secondary Targets 1 | . . . . 1 . . . . Max Gunslinging Chain 1 | . . . . 1 . . . . Shots Hit Robots 185 | 3 81 11 . 8 39 17 10 16 Core Hits 87 | 2 35 3 . 5 16 14 9 3 Critical Kills . | . . . . . . . . . Critical Parts Destroyed . | . . . . . . . . . Critical Strikes 8 | . . . . . 3 3 . 2 Sever 3 | . . . . . 3 . . . Impale 5 | . . . . . . 3 . 2 Melee Attacks 116 | . . . . . 37 43 19 17 Impact . | . . . . . . . . . Slashing 43 | . . . . . 37 6 . . Piercing 73 | . . . . . . 37 19 17 Sneak Attacks 6 | . . . . . 6 . . . Combat Hostiles 1 | . . . . . 1 . . . Follow-up Attacks . | . . . . . . . . . Damage Inflicted 4782 | 33 989 197 . 124 1299 864 822 454 Guns 1175 | 33 790 114 . 81 31 81 45 . Cannons 179 | . . . . . 71 . 108 . Explosions 1467 | . 199 70 . 43 . 550 605 . Melee 1948 | . . . . . 1197 233 64 454 Ramming 13 | . . 13 . . . . . . Kinetic 825 | 6 516 58 . 17 102 81 45 . Thermal 221 | . . 70 . 43 . . 108 . Explosive 1354 | . 199 . . . . 550 605 . Electromagnetic 421 | 27 274 56 . 64 . . . . Impact . | . . . . . . . . . Slashing 1197 | . . . . . 1197 . . . Piercing 751 | . . . . . . 233 64 454 Highest Corruption 3 | . . . . . . 3 . . Average Corruption 2 | . . . . . . 2 . . Corruption Purged 3 | . . . . . . 3 . . Corruption Blocked . | . . . . . . . . . Effects 1 | . . . . . . 1 . . Energy Discharges 1 | . . . . . . 1 . . Overload Shots . | . . . . . . . . . Overflow Damage 365 | . . . . . 131 63 133 38 Projectiles . | . . . . . . . . . Explosions 157 | . . . . . . 24 133 . Melee 208 | . . . . . 131 39 . 38 Knockbacks 1 | . . . . . 1 . . . Impact . | . . . . . . . . . Kinetic 1 | . . . . . 1 . . . Secondary . | . . . . . . . . . Self-Inflicted Damage 99 | . . . . . . 28 71 . Shots 2 | . . . . . . 1 1 . Rammed 2 | . . 2 . . . . . . Targets Rammed 2 | . . 2 . . . . . . Kicked . | . . . . . . . . . Crushed . | . . . . . . . . . Highest Temperature 156 | 20 93 . . . 10 46 156 5 Average Temperature 34 | 15 39 . . . 8 10 55 3 Received Heat Transfer 792 | . 183 . . . 114 186 18 291 Siege Activations . | . . . . . . . . . Robots Corrupted . | . . . . . . . . . Combat Hostiles . | . . . . . . . . . Parts Fried . | . . . . . . . . . Impact Corruptions . | . . . . . . . . . Robots Melted . | . . . . . . . . . Combat Hostiles . | . . . . . . . . . Parts Melted 1 | . . . . . . . . 1 Heat Transferred 390 | . . 100 . 50 . . 240 . Parts Sabotaged . | . . . . . . . . . Parts Stolen . | . . . . . . . . . Parts Stripped . | . . . . . . . . . Power Chain Reactions 2 | . . 1 . 1 . . . . Alert | -11 -10 -10 -10 -9 -8 -8 -7 -6 ------- Run | Yrd Mat Min Exi Min Mat Gar Fac Fac Peak Influence 2338 | 5 287 100 . 96 186 2338 1468 822 Initial 1227 | . 3 42 . . 37 120 1227 704 Average 614 | 2 107 17 . 17 78 1206 1283 760 Maximum Alert Level 5 | . 1 . . . . 5 4 3 Low Security (%) 54 | 100 95 100 . 100 100 12 . . Level 1 1 | . 4 . . . . 3 . . Level 2 3 | . . . . . . 9 . . Level 3 9 | . . . . . . 19 . 100 Level 4 18 | . . . . . . 19 99 . Level 5 11 | . . . . . . 35 . . High Security . | . . . . . . . . . Max Security . | . . . . . . . . . Squads Dispatched 6 | . 2 . . . 1 . 3 . Investigation 2 | . 1 . . . 1 . . . Extermination 1 | . . . . . . . 1 . Reinforcement 2 | . 1 . . . . . 1 . Assault 1 | . . . . . . . 1 . Garrison . | . . . . . . . . . Intercept . | . . . . . . . . . Searches Triggered . | . . . . . . . . . Construction Impeded 1 | . . . . . . . 1 . Haulers Reinforced . | . . . . . . . . . Active Scanning Responses . | . . . . . . . . . Cargo Convoy Interrupts . | . . . . . . . . . Stealth | -11 -10 -10 -10 -9 -8 -8 -7 -6 --------- Run | Yrd Mat Min Exi Min Mat Gar Fac Fac Distress Signals 1 | . . . . . . . 1 . Communications Jammed . | . . . . . . . . . Distress Signals . | . . . . . . . . . Times Spotted 108 | . 28 3 1 5 15 31 19 6 Peak Tracking Total 7 | . 4 3 1 4 3 4 7 4 Tactical Retreats 4 | . 1 . . 1 . 1 . 1 Traps | -11 -10 -10 -10 -9 -8 -8 -7 -6 ------- Run | Yrd Mat Min Exi Min Mat Gar Fac Fac Traps Triggered 1 | . . . . . 1 . . . Indirectly . | . . . . . . . . . Trap Hack Attempts . | . . . . . . . . . Triggered . | . . . . . . . . . Disarmed 1 | . 1 . . . . . . . Reprogrammed . | . . . . . . . . . Reused . | . . . . . . . . . Traps Extracted . | . . . . . . . . . Installed . | . . . . . . . . . Triggered . | . . . . . . . . . Machines | -11 -10 -10 -10 -9 -8 -8 -7 -6 ---------- Run | Yrd Mat Min Exi Min Mat Gar Fac Fac Machines Disabled 15 | . 3 . . . . 12 . . Max in Single Turn 2 | . 2 . . . . 2 . . Garrison Relay 5 | . . . . . . 5 . . Phase Generator 1 | . . . . . . 1 . . Machines Repaired . | . . . . . . . . . Machines Dismantled 1 | . . . . . . 1 . . Machines Sabotaged . | . . . . . . . . . Overloaded Fab Kills . | . . . . . . . . . Hacking | -11 -10 -10 -10 -9 -8 -8 -7 -6 --------- Run | Yrd Mat Min Exi Min Mat Gar Fac Fac Machines Accessed 20 | . 5 . 1 . 5 3 4 2 Terminals 16 | . 4 . . . 4 3 3 2 Fabricators . | . . . . . . . . . Repair Stations 1 | . 1 . . . . . . . Recycling Units . | . . . . . . . . . Scanalyzers 1 | . . . . . . . 1 . Garrison Access 1 | . . . . . 1 . . . Total Hacks 65 | . 13 . 1 . 17 6 20 8 Successful 36 | . 8 . 1 . 8 4 11 4 Failed 29 | . 5 . . . 9 2 9 4 Catastrophic 5 | . 1 . . . 1 2 1 . Database Lockouts . | . . . . . . . . . Manual 37 | . 8 . 1 . 15 3 7 3 Terminals 52 | . 11 . . . 15 6 12 8 Fabricators . | . . . . . . . . . Repair Stations 2 | . 2 . . . . . . . Recycling Units . | . . . . . . . . . Scanalyzers 8 | . . . . . . . 8 . Garrison Access 2 | . . . . . 2 . . . Terminal Hacks 17 | . 3 . 1 . 3 3 4 3 Part Schematic 1 | . . . . . . . . 1 Robot Schematic 2 | . . . . . . . 2 . Robot Analysis 1 | . . . . . 1 . . . Prototype ID Bank 1 | . 1 . . . . . . . Emergency Access Points 1 | . . . . . . 1 . . Machine Index 1 | . . . . . . . . 1 Terminal Index 2 | . 1 . . . 1 . . . Fabricator Index 1 | . . . . . . . 1 . Garrison Index 1 | . . . . . 1 . . . Locate Traps 2 | . . . . . . . 1 1 Disarm Traps 1 | . 1 . . . . . . . Garrison Registry 1 | . . . . . . 1 . . Patrol Navigation 1 | . . . . . . 1 . . Derelict Proto ID Bank 1 | . . . 1 . . . . . Fabricator Hacks . | . . . . . . . . . Repair Station Hacks 2 | . 2 . . . . . . . Scan Component 1 | . 1 . . . . . . . Repair 1 | . 1 . . . . . . . Recycling Unit Hacks . | . . . . . . . . . Scanalyzer 5 | . . . . . . . 5 . Insert Component 2 | . . . . . . . 2 . Analyze 3 | . . . . . . . 3 . Garrison Access Hacks 1 | . . . . . 1 . . . Unlock Access 1 | . . . . . 1 . . . Unauthorized Hacks 11 | . 3 . . . 4 1 2 1 Terminals 11 | . 3 . . . 4 1 2 1 Assimilate 1 | . 1 . . . . . . . Botnet 6 | . . . . . 3 1 1 1 Operators 4 | . 2 . . . 1 . 1 . Fabricators . | . . . . . . . . . Repair Stations . | . . . . . . . . . Recycling Units . | . . . . . . . . . Scanalyzers . | . . . . . . . . . Garrison Access . | . . . . . . . . . Data Cores Recovered . | . . . . . . . . . Used . | . . . . . . . . . Hacking Detections 17 | . 5 . . . 4 3 3 2 Full Trace Events 1 | . 1 . . . . . . . Feedback Events . | . . . . . . . . . Feedback Blocked . | . . . . . . . . . Robot Schematics Acquired 2 | . . . . . . . 2 . Robots Built . | . . . . . . . . . Authchips . | . . . . . . . . . Time . | . . . . . . . . . Total Robot Build Rating . | . . . . . . . . . Part Schematics Acquired 3 | . . . . . . . 2 1 Parts Built . | . . . . . . . . . Authchips . | . . . . . . . . . Time . | . . . . . . . . . Total Part Build Rating . | . . . . . . . . . Parts Repaired 1 | . 1 . . . . . . . Time 26 | . 26 . . . . . . . Parts Recycled . | . . . . . . . . . Recycled Matter . | . . . . . . . . . Retrieved Matter . | . . . . . . . . . Retrieved Components . | . . . . . . . . . Parts Scanalyzed 2 | . . . . . . . 2 . Part Schematics Acquired 2 | . . . . . . . 2 . Parts Damaged . | . . . . . . . . . Bothacking | -11 -10 -10 -10 -9 -8 -8 -7 -6 ------------ Run | Yrd Mat Min Exi Min Mat Gar Fac Fac Used RIF Installer 1 | . . . . . . 1 . . Robots Hacked 6 | . . . . . . 2 2 2 Non-combat . | . . . . . . . . . Combat 6 | . . . . . . 2 2 2 Robot Hacks Applied 6 | . . . . . . 2 2 2 spike_heat 1 | . . . . . . . . 1 reboot_system 1 | . . . . . . . 1 . streamctrl_high 1 | . . . . . . . . 1 formatsys_high 3 | . . . . . . 2 1 . Relay Couplers Released 20 | . . . . . . 20 . . Machine Destruction 20 | . . . . . . 20 . . Attached 2 | . . . . . . 2 . . Fabnet Peak Effective % . | . . . . . . . . . Robots Rewired . | . . . . . . . . . Allies Hacked . | . . . . . . . . . Hacks Repelled . | . . . . . . . . . Allies | -11 -10 -10 -10 -9 -8 -8 -7 -6 -------- Run | Yrd Mat Min Exi Min Mat Gar Fac Fac Total Allies 9 | . . 1 . . . 6 1 1 Largest Group 4 | . . 1 . . . 4 4 1 Highest-Rated Group 215 | . . 31 . . . 215 190 47 Highest-Rated Ally 85 | . . 31 . . . 85 85 47 Total Orders 2 | . . . . . . 2 . . ROAM 1 | . . . . . . 1 . . FOLLOW 1 | . . . . . . 1 . . Ally Attacks 87 | . . . . . . 48 34 5 Total Damage 3221 | . . . . . . 2090 957 174 Kills 44 | . . . . . . 29 15 . Allies Corrupted . | . . . . . . . . . Allies Melted . | . . . . . . . . . Field Lobotomies 2 | . . . . . . 2 . . Intel | -11 -10 -10 -10 -9 -8 -8 -7 -6 ------- Run | Yrd Mat Min Exi Min Mat Gar Fac Fac Robot Analysis Total 1 | . . . . . 1 . . . Derelict Logs Recovered 4 | . . 2 . 2 . . . . Drone Launches . | . . . . . . . . . Drone Recoveries . | . . . . . . . . . Exploration | -11 -10 -10 -10 -9 -8 -8 -7 -6 ------------- Run | Yrd Mat Min Exi Min Mat Gar Fac Fac Turns Passed 8162 | 71 1188 1014 416 522 1194 2583 961 213 Spaces Moved 4358 | 49 522 611 313 479 490 1286 479 129 Core 17 | 17 . . . . . . . . Treads 2921 | 17 477 611 165 . 29 1203 419 . Legs . | . . . . . . . . . Wheels 1420 | 15 45 . 148 479 461 83 60 129 Hover . | . . . . . . . . . Flight . | . . . . . . . . . Fastest Speed 50 | 50 95 160 95 95 95 110 115 115 Average Speed 143 | 100 154 160 129 95 113 163 157 118 Slowest Speed 245 | 160 160 160 160 95 160 245 237 130 Overloaded Moves . | . . . . . . . . . Propulsion Burnouts . | . . . . . . . . . Robots Hopped . | . . . . . . . . . Cave-ins Triggered . | . . . . . . . . . Exploration Rate (%) 53 | 4 72 97 62 98 40 90 12 5 Regions Visited 8 Branch Regions 3 Pre-discovered Areas . | . . . . . . . . . Known Exits Taken 1 | . . . . . 1 . . . Unknown Exits Taken 6 | 1 1 1 1 1 . . 1 . Scrap Searched 3 | . . 2 . 1 . . . . Spaces Dug 18 | . . . . . . 1 17 . Terrain Destroyed 170 | . 1 3 . 1 . 129 36 . Melee 18 | . . . . . . 1 17 . Projectile . | . . . . . . . . . AOE 152 | . 1 3 . 1 . 128 19 . Terrain Rammed . | . . . . . . . . . Walls Destroyed . | . . . . . . . . . Machines Disabled . | . . . . . . . . . Actions | -11 -10 -10 -10 -9 -8 -8 -7 -6 --------- Run | Yrd Mat Min Exi Min Mat Gar Fac Fac Total 5869 | 66 775 630 323 533 1066 1665 651 160 Wait 1060 | . 154 6 5 43 479 257 109 7 Move 4351 | 48 521 610 312 478 490 1285 478 129 Hop . | . . . . . . . . . Pick Up 60 | 7 11 1 3 1 15 14 8 . Fast Attach 14 | 3 1 . . . 4 3 3 . Attach 15 | 3 2 . . 1 4 3 2 . Detach . | . . . . . . . . . Swap 63 | 2 13 2 2 2 14 19 8 1 Drop 46 | 1 1 . 1 1 15 14 13 . Fire 134 | 2 72 9 . 7 8 19 11 6 Melee 116 | . . . . . 37 43 19 17 Ram . | . . . . . . . . . Kick . | . . . . . . . . . Crush 2 | . . 2 . . . . . . Escape Stasis . | . . . . . . . . . Rewire . | . . . . . . . . . Trap . | . . . . . . . . . Miscellaneous 8 | . . . . . . 8 . . Route ------- -11/Scrapyard -10/Materials (discovered 3 exits: [*Mat] / [*Min x2]) -10/Mines (discovered 4 exits: [*Mat x2] / *Exi / [*Sub]) -10/Exiles -9/Mines (discovered 2 exits: *Mat x2) -8/Materials (discovered 3 exits: *Fac x2 / Gar) -8/Garrison (discovered 4 exits: *Fac x3 / [Mat]) -7/Factory (discovered 3 exits: *Fac / Sto x2) -6/Factory History --------- Turn | Location | Event 15 | -11/Scrapyard | Discovered new exit (range 16) 72 | -11/Scrapyard | Entered Materials 330 | -10/Materials | Build established: Mutant 523 | -10/Materials | Discovered new exit (range 8) 613 | -10/Materials | Discovered new exit (range 12) 1053 | -10/Materials | Discovered new exit (range 6) 1129 | -10/Materials | Repaired EM Pulse Gun 1260 | -10/Materials | Entered Mines 1670 | -10/Mines | Received a Mining Laser from a helpful Derelict 1725 | -10/Mines | Deemed a non-threat by the Exiles lab entrance 1725 | -10/Mines | Discovered new exit (range 5) 1744 | -10/Mines | Discovered new exit (range 11) 1789 | -10/Mines | Found a hidden stash of uninstalled traps 1997 | -10/Mines | Discovered new exit (range 7) 2031 | -10/Mines | Discovered new exit (range 16) 2274 | -10/Mines | Entered Exiles 2316 | -10/Exiles | Met 8R-AWN 2343 | -10/Exiles | Met EX-HEX 2385 | -10/Exiles | Met EX-BIN 2407 | -10/Exiles | Aligned with FarCom system 2409 | -10/Exiles | Given EX-Vault access code 2446 | -10/Exiles | Opened EX-Vault 2458 | -10/Exiles | Found Gui. Plasma Cannon 2491 | -10/Exiles | Warned to stay clear of 0b10 Research branches 2512 | -10/Exiles | Exiles lab attacked by MAIN.C 2580 | -10/Exiles | Found Field Lobotomy Kit 2586 | -10/Exiles | Found Longsword +1 2672 | -10/Exiles | Discovered new exit (range 15) 2690 | -10/Exiles | Stole three prototypes: Gui. Plasma Cannon, Field Lobotomy Kit, Longsword +1 2690 | -10/Exiles | Entered Mines 2691 | -9/Mines | Assembled infested the area 2696 | -9/Mines | Assisted by a Guerilla fighting off Assembled 2777 | -9/Mines | Discovered new exit (range 11) 2848 | -9/Mines | Discovered new exit (range 11) 2918 | -9/Mines | A weapon hastily lodged in a ceiling crevice suddenly fell to the ground 3212 | -9/Mines | Entered Materials 3212 | -8/Materials | Evolved 4 slots: Utility x4 3213 | -8/Materials | Identified exit to Factory 3917 | -8/Materials | Build established: Hacker-Mutant 4100 | -8/Materials | Discovered exit to Factory (range 5) 4406 | -8/Materials | Identified exit to Garrison 4406 | -8/Materials | Entered Garrison 4451 | -8/Garrison | Spotted B-75 Beast 4451 | -8/Garrison | Spotted B-75 Beast 4465 | -8/Garrison | Assimilated B-75 Beast with FLK Orb 4471 | -8/Garrison | Assimilated B-75 Beast with FLK Orb 4700 | -8/Garrison | Triggered checkpoint 4739 | -8/Garrison | Triggered checkpoint 5015 | -8/Garrison | Discovered exit to Factory (range 10) 5091 | -8/Garrison | Rescued a captive Derelict 5101 | -8/Garrison | Rescued a captive Derelict 5106 | -8/Garrison | Triggered checkpoint 5196 | -8/Garrison | Discovered exit to Factory (range 70) 5196 | -8/Garrison | Discovered exit to Factory (range 13) 5196 | -8/Garrison | Discovered exit to Factory (range 70) 5196 | -8/Garrison | Discovered new exit (range 52) 5240 | -8/Garrison | Triggered checkpoint 5266 | -8/Garrison | Garrison Relay disabled 5311 | -8/Garrison | Phase Generator disabled 5532 | -8/Garrison | Triggered checkpoint 5560 | -8/Garrison | Garrison Relay disabled 5870 | -8/Garrison | Triggered checkpoint 5932 | -8/Garrison | Triggered checkpoint 6005 | -8/Garrison | Installed Relay Interface Framework 6022 | -8/Garrison | Triggered checkpoint 6057 | -8/Garrison | Garrison Relay disabled 6216 | -8/Garrison | Triggered checkpoint 6453 | -8/Garrison | Garrison Relay disabled 6604 | -8/Garrison | Triggered checkpoint 6671 | -8/Garrison | Garrison Relay disabled 6989 | -8/Garrison | Entered Factory 6989 | -7/Factory | Accompanied by 4 allies 6989 | -7/Factory | Evolved 2 slots: Utility x2 6990 | -7/Factory | Identified exit to Storage 6991 | -7/Factory | FarCom data flow suspended 7789 | -7/Factory | First assault squad dispatched 7933 | -7/Factory | Discovered new exit (range 16) 7944 | -7/Factory | Lost 3 allies 7950 | -7/Factory | Entered another Factory area 7950 | -6/Factory | Evolved 2 slots: Utility x2 8163 | -6/Factory | Self-destructed Last Messages --------------- 08084_ Veteran 5a heat damages Adv. Heat Sink. 08084_ G-50 Soldier suffers critical hit (Impale). 08086_ Veteran 5a overheating. 08090_ Veteran 5a destroyed. 08090_ G-50 Soldier suffers critical hit (Impale). 08096_ Destroyed Hvy. Laser. 08096_ G-50 Soldier destroyed. 08105_ Jacked G-50 Soldier... >>spike_heat Tweaking power source heat flow. 08106_ Adv. Heat Sink melted. 08106_ G-50 Soldier destroyed. 08110_ Acquired 52 matter. 08120_ ALERT: Security rotation in progress. 08152_ Destroyed Lgt. Angular Momentum Engine. 08154_ Imp. Medium Armor Plating destroyed. 08155_ G-50 Soldier destroyed. 08162_ K-01 Serf collects debris. Map ----- +----------------------------------------------------+ | | | | | | | | | | | | | | | | | | | | | | | | | | | | | | | ##############################????? | | # # #????? | | # k # ** !#????? | | # # """ *! #????? | | # # """ * #????? | | # # """ #????? | | # # #????? | | # # #????? | | # # #????? | | ?????#####/##########+#####+##????? | | ???????# @ #?????? | | ???????# ^= ^ #?????? | | ???????# [%= """"""" ####??? | | ######## ! ^ """"""" | | # + ^ w""""""" ##### #### | | # # ^ """"""" #?????#??? | | # # #????????? | | # ! # #????????? | | # # #????????? | | # # t *%#????????? | | # + #####+#####+###??????? | | # # #???# !%! #??????? | | # # #???# ! #??????? | | # # #???# ""T"" #??????? | | # # #???# """""=%!#??????? | | # # ###############??????? | | # # # #???????? | | ######## # #???????? | | ???????# # #???????? | | ???????# # ! #???????? | | ???????# # #???????? | | ???????# + #???????? | | ???????# # #???????? | | ######## + #???????? | | # # # #???????? | +----------------------------------------------------+ Best States ------------- Heat Dissipation 59 Energy Generation 16 Energy Capacity 290 Matter Stores 300 Matter Capacity 300 Sight Range 16 Terrain Scan Density 10 Armor Coverage 450 Resistance: KI 25 Evasion (%) 50 Recoil Reduction 2 Offensive Hacking 20 Defensive Hacking 30 Relay Coupler Types 1 Relay Coupler Value 41 Item Schematics ----------------- Cld. VTOL Module | -7/Factory | Scanalyzed Lrn. Missile Launcher | -7/Factory | Scanalyzed Adv. Signal Interpreter | -6/Factory | Hacked Robot Schematics ------------------ M-13 Machinist | -7/Factory | Hacked I-36 Angel | -7/Factory | Hacked Fabricated ------------ Nothing Alien Tech Used ----------------- None Achievements -------------- Factory Defaults Challenges ------------ None Game ------ Seed DeliveryLayeredLog Manual? 0 Play Time 00:55:02 Cumulative 98.9 hours Start 2024.11.05 @ 19:05:32 End 2024.11.05 @ 20:12:24 Sessions 1 Manual Loads 0 Difficulty Rogue Special Mode None Game No. 155 Rogue 154 Adventurer 1 Explorer 0 Win Type - Total 1 Types 0/0/0/1/0/0/0/0/0 Lore% 57 Gallery% 57 Achievement% 49 Wizard Run 0 Options --------- Layout 1 ASCII 0 Keyboard 0 Movement Mouse Keybinds 0 Fullscreen 2 Font 24/Terminus Map View 50x35 Zoom Use 0% Tactical HUD 1 Map Filters NONE Filters NONE Steam 1 RUN: 1c1634c7-8a43-4768-b13d-63f74820d73e